{"text_format":"1","workbook":"xlsx","n_sheets":2,"sheets":["Import","Instructions"],"not_rendered":{"charts":0,"images":1,"macros":1,"external_links":0,"defined_names":1,"comments":1,"pivot_tables":0},"unopened":[],"bounds":{"document_bytes":16777216,"sheet_cells":100000,"rows_first":2000,"rows_last":500,"rows_between":2000,"halvings":0,"cell_chars":16384,"cell_head_chars":4096},"cells_cut":0,"cells_raw":0,"read":"whole","date_system":"1900"}

{"sheet":"Import","index":0,"n_rows":998,"n_cols":15,"rows_kept":998,"cut":false,"hidden":false,"merged":[]}
[null,null,null,null,null,null,null,null,null,null,null,null,null,null,"New Retail Zone "]
["Item#","Item Description","New Import Cost","Duty %","Additional Duty per PC","Total Duty","Freight Rate (per cubic ft)","Ocean Freight","Misc Load $","Other Cost","Total Unit Cost","Effective Date","Retail Recommendation","Comments",1]
[null,null,null,null,null,{"$f":"IF(C3=\"\",\"\",ROUND(C3*D3+E3,3))","v":""},null,null,null,null,{"$f":"IF(C3=\"\",\"\",ROUND(SUM(C3,F3,H3,I3,J3),3))","v":""}]
[null,null,null,null,null,"",null,null,null,null,""]
[null,null,null,null,null,"",null,null,null,null,""]
[null,null,null,null,null,"",null,null,null,null,""]
[null,null,null,null,null,"",null,null,null,null,""]
[null,null,null,null,null,"",null,null,null,null,""]
[null,null,null,null,null,"",null,null,null,null,""]
[null,null,null,null,null,"",null,null,null,null,""]
[null,null,null,null,null,"",null,null,null,null,""]
[null,null,null,null,null,"",null,null,null,null,""]
[null,null,null,null,null,"",null,null,null,null,""]
[null,null,null,null,null,"",null,null,null,null,""]
[null,null,null,null,null,"",null,null,null,null,""]
[null,null,null,null,null,"",null,null,null,null,""]
[null,null,null,null,null,"",null,null,null,null,""]
[null,null,null,null,null,"",null,null,null,null,""]
[null,null,null,null,null,"",null,null,null,null,""]
[null,null,null,null,null,"",null,null,null,null,""]
[null,null,null,null,null,"",null,null,null,null,""]
[null,null,null,null,null,"",null,null,null,null,""]
[null,null,null,null,null,"",null,null,null,null,""]
[null,null,null,null,null,"",null,null,null,null,""]
[null,null,null,null,null,"",null,null,null,null,""]
[null,null,null,null,null,"",null,null,null,null,""]
[null,null,null,null,null,"",null,null,null,null,""]
[null,null,null,null,null,"",null,null,null,null,""]
[null,null,null,null,null,"",null,null,null,null,""]
[null,null,null,null,null,"",null,null,null,null,""]
[null,null,null,null,null,"",null,null,null,null,""]
[null,null,null,null,null,"",null,null,null,null,""]
[null,null,null,null,null,"",null,null,null,null,""]
[null,null,null,null,null,"",null,null,null,null,""]
[null,null,null,null,null,"",null,null,null,null,""]
[null,null,null,null,null,"",null,null,null,null,""]
[null,null,null,null,null,"",null,null,null,null,""]
[null,null,null,null,null,"",null,null,null,null,""]
[null,null,null,null,null,"",null,null,null,null,""]
[null,null,null,null,null,"",null,null,null,null,""]
[null,null,null,null,null,"",null,null,null,null,""]
[null,null,null,null,null,"",null,null,null,null,""]
[null,null,null,null,null,"",null,null,null,null,""]
[null,null,null,null,null,"",null,null,null,null,""]
[null,null,null,null,null,"",null,null,null,null,""]
[null,null,null,null,null,"",null,null,null,null,""]
[null,null,null,null,null,"",null,null,null,null,""]
[null,null,null,null,null,"",null,null,null,null,""]
[null,null,null,null,null,"",null,null,null,null,""]
[null,null,null,null,null,"",null,null,null,null,""]
[null,null,null,null,null,"",null,null,null,null,""]
[null,null,null,null,null,"",null,null,null,null,""]
[null,null,null,null,null,"",null,null,null,null,""]
[null,null,null,null,null,"",null,null,null,null,""]
[null,null,null,null,null,"",null,null,null,null,""]
[null,null,null,null,null,"",null,null,null,null,""]
[null,null,null,null,null,"",null,null,null,null,""]
[null,null,null,null,null,"",null,null,null,null,""]
[null,null,null,null,null,"",null,null,null,null,""]
[null,null,null,null,null,"",null,null,null,null,""]
[null,null,null,null,null,"",null,null,null,null,""]
[null,null,null,null,null,"",null,null,null,null,""]
[null,null,null,null,null,"",null,null,null,null,""]
[null,null,null,null,null,"",null,null,null,null,""]
[null,null,null,null,null,"",null,null,null,null,""]
[null,null,null,null,null,"",null,null,null,null,""]
[null,null,null,null,null,{"$f":"IF(C67=\"\",\"\",ROUND(C67*D67+E67,3))","v":""},null,null,null,null,{"$f":"IF(C67=\"\",\"\",ROUND(SUM(C67,F67,H67,I67,J67),3))","v":""}]
[null,null,null,null,null,"",null,null,null,null,""]
[null,null,null,null,null,"",null,null,null,null,""]
[null,null,null,null,null,"",null,null,null,null,""]
[null,null,null,null,null,"",null,null,null,null,""]
[null,null,null,null,null,"",null,null,null,null,""]
[null,null,null,null,null,"",null,null,null,null,""]
[null,null,null,null,null,"",null,null,null,null,""]
[null,null,null,null,null,"",null,null,null,null,""]
[null,null,null,null,null,"",null,null,null,null,""]
[null,null,null,null,null,"",null,null,null,null,""]
[null,null,null,null,null,"",null,null,null,null,""]
[null,null,null,null,null,"",null,null,null,null,""]
[null,null,null,null,null,"",null,null,null,null,""]
[null,null,null,null,null,"",null,null,null,null,""]
[null,null,null,null,null,"",null,null,null,null,""]
[null,null,null,null,null,"",null,null,null,null,""]
[null,null,null,null,null,"",null,null,null,null,""]
[null,null,null,null,null,"",null,null,null,null,""]
[null,null,null,null,null,"",null,null,null,null,""]
[null,null,null,null,null,"",null,null,null,null,""]
[null,null,null,null,null,"",null,null,null,null,""]
[null,null,null,null,null,"",null,null,null,null,""]
[null,null,null,null,null,"",null,null,null,null,""]
[null,null,null,null,null,"",null,null,null,null,""]
[null,null,null,null,null,"",null,null,null,null,""]
[null,null,null,null,null,"",null,null,null,null,""]
[null,null,null,null,null,"",null,null,null,null,""]
[null,null,null,null,null,"",null,null,null,null,""]
[null,null,null,null,null,"",null,null,null,null,""]
[null,null,null,null,null,"",null,null,null,null,""]
[null,null,null,null,null,"",null,null,null,null,""]
[null,null,null,null,null,"",null,null,null,null,""]
[null,null,null,null,null,"",null,null,null,null,""]
[null,null,null,null,null,"",null,null,null,null,""]
[null,null,null,null,null,"",null,null,null,null,""]
[null,null,null,null,null,"",null,null,null,null,""]
[null,null,null,null,null,"",null,null,null,null,""]
[null,null,null,null,null,"",null,null,null,null,""]
[null,null,null,null,null,"",null,null,null,null,""]
[null,null,null,null,null,"",null,null,null,null,""]
[null,null,null,null,null,"",null,null,null,null,""]
[null,null,null,null,null,"",null,null,null,null,""]
[null,null,null,null,null,"",null,null,null,null,""]
[null,null,null,null,null,"",null,null,null,null,""]
[null,null,null,null,null,"",null,null,null,null,""]
[null,null,null,null,null,"",null,null,null,null,""]
[null,null,null,null,null,"",null,null,null,null,""]
[null,null,null,null,null,"",null,null,null,null,""]
[null,null,null,null,null,"",null,null,null,null,""]
[null,null,null,null,null,"",null,null,null,null,""]
[null,null,null,null,null,"",null,null,null,null,""]
[null,null,null,null,null,"",null,null,null,null,""]
[null,null,null,null,null,"",null,null,null,null,""]
[null,null,null,null,null,"",null,null,null,null,""]
[null,null,null,null,null,"",null,null,null,null,""]
[null,null,null,null,null,"",null,null,null,null,""]
[null,null,null,null,null,"",null,null,null,null,""]
[null,null,null,null,null,"",null,null,null,null,""]
[null,null,null,null,null,"",null,null,null,null,""]
[null,null,null,null,null,"",null,null,null,null,""]
[null,null,null,null,null,"",null,null,null,null,""]
[null,null,null,null,null,"",null,null,null,null,""]
[null,null,null,null,null,"",null,null,null,null,""]
[null,null,null,null,null,{"$f":"IF(C131=\"\",\"\",ROUND(C131*D131+E131,3))","v":""},null,null,null,null,{"$f":"IF(C131=\"\",\"\",ROUND(SUM(C131,F131,H131,I131,J131),3))","v":""}]
[null,null,null,null,null,"",null,null,null,null,""]
[null,null,null,null,null,"",null,null,null,null,""]
[null,null,null,null,null,"",null,null,null,null,""]
[null,null,null,null,null,"",null,null,null,null,""]
[null,null,null,null,null,"",null,null,null,null,""]
[null,null,null,null,null,"",null,null,null,null,""]
[null,null,null,null,null,"",null,null,null,null,""]
[null,null,null,null,null,"",null,null,null,null,""]
[null,null,null,null,null,"",null,null,null,null,""]
[null,null,null,null,null,"",null,null,null,null,""]
[null,null,null,null,null,"",null,null,null,null,""]
[null,null,null,null,null,"",null,null,null,null,""]
[null,null,null,null,null,"",null,null,null,null,""]
[null,null,null,null,null,"",null,null,null,null,""]
[null,null,null,null,null,"",null,null,null,null,""]
[null,null,null,null,null,"",null,null,null,null,""]
[null,null,null,null,null,"",null,null,null,null,""]
[null,null,null,null,null,"",null,null,null,null,""]
[null,null,null,null,null,"",null,null,null,null,""]
[null,null,null,null,null,"",null,null,null,null,""]
[null,null,null,null,null,"",null,null,null,null,""]
[null,null,null,null,null,"",null,null,null,null,""]
[null,null,null,null,null,"",null,null,null,null,""]
[null,null,null,null,null,"",null,null,null,null,""]
[null,null,null,null,null,"",null,null,null,null,""]
[null,null,null,null,null,"",null,null,null,null,""]
[null,null,null,null,null,"",null,null,null,null,""]
[null,null,null,null,null,"",null,null,null,null,""]
[null,null,null,null,null,"",null,null,null,null,""]
[null,null,null,null,null,"",null,null,null,null,""]
[null,null,null,null,null,"",null,null,null,null,""]
[null,null,null,null,null,"",null,null,null,null,""]
[null,null,null,null,null,"",null,null,null,null,""]
[null,null,null,null,null,"",null,null,null,null,""]
[null,null,null,null,null,"",null,null,null,null,""]
[null,null,null,null,null,"",null,null,null,null,""]
[null,null,null,null,null,"",null,null,null,null,""]
[null,null,null,null,null,"",null,null,null,null,""]
[null,null,null,null,null,"",null,null,null,null,""]
[null,null,null,null,null,"",null,null,null,null,""]
[null,null,null,null,null,"",null,null,null,null,""]
[null,null,null,null,null,"",null,null,null,null,""]
[null,null,null,null,null,"",null,null,null,null,""]
[null,null,null,null,null,"",null,null,null,null,""]
[null,null,null,null,null,"",null,null,null,null,""]
[null,null,null,null,null,"",null,null,null,null,""]
[null,null,null,null,null,"",null,null,null,null,""]
[null,null,null,null,null,"",null,null,null,null,""]
[null,null,null,null,null,"",null,null,null,null,""]
[null,null,null,null,null,"",null,null,null,null,""]
[null,null,null,null,null,"",null,null,null,null,""]
[null,null,null,null,null,"",null,null,null,null,""]
[null,null,null,null,null,"",null,null,null,null,""]
[null,null,null,null,null,"",null,null,null,null,""]
[null,null,null,null,null,"",null,null,null,null,""]
[null,null,null,null,null,"",null,null,null,null,""]
[null,null,null,null,null,"",null,null,null,null,""]
[null,null,null,null,null,"",null,null,null,null,""]
[null,null,null,null,null,"",null,null,null,null,""]
[null,null,null,null,null,"",null,null,null,null,""]
[null,null,null,null,null,"",null,null,null,null,""]
[null,null,null,null,null,"",null,null,null,null,""]
[null,null,null,null,null,"",null,null,null,null,""]
[null,null,null,null,null,{"$f":"IF(C195=\"\",\"\",ROUND(C195*D195+E195,3))","v":""},null,null,null,null,{"$f":"IF(C195=\"\",\"\",ROUND(SUM(C195,F195,H195,I195,J195),3))","v":""}]
[null,null,null,null,null,"",null,null,null,null,""]
[null,null,null,null,null,"",null,null,null,null,""]
[null,null,null,null,null,"",null,null,null,null,""]
[null,null,null,null,null,"",null,null,null,null,""]
[null,null,null,null,null,"",null,null,null,null,""]
[null,null,null,null,null,"",null,null,null,null,""]
[null,null,null,null,null,"",null,null,null,null,""]
[null,null,null,null,null,"",null,null,null,null,""]
[null,null,null,null,null,"",null,null,null,null,""]
[null,null,null,null,null,"",null,null,null,null,""]
[null,null,null,null,null,"",null,null,null,null,""]
[null,null,null,null,null,"",null,null,null,null,""]
[null,null,null,null,null,"",null,null,null,null,""]
[null,null,null,null,null,"",null,null,null,null,""]
[null,null,null,null,null,"",null,null,null,null,""]
[null,null,null,null,null,"",null,null,null,null,""]
[null,null,null,null,null,"",null,null,null,null,""]
[null,null,null,null,null,"",null,null,null,null,""]
[null,null,null,null,null,"",null,null,null,null,""]
[null,null,null,null,null,"",null,null,null,null,""]
[null,null,null,null,null,"",null,null,null,null,""]
[null,null,null,null,null,"",null,null,null,null,""]
[null,null,null,null,null,"",null,null,null,null,""]
[null,null,null,null,null,"",null,null,null,null,""]
[null,null,null,null,null,"",null,null,null,null,""]
[null,null,null,null,null,"",null,null,null,null,""]
[null,null,null,null,null,"",null,null,null,null,""]
[null,null,null,null,null,"",null,null,null,null,""]
[null,null,null,null,null,"",null,null,null,null,""]
[null,null,null,null,null,"",null,null,null,null,""]
[null,null,null,null,null,"",null,null,null,null,""]
[null,null,null,null,null,"",null,null,null,null,""]
[null,null,null,null,null,"",null,null,null,null,""]
[null,null,null,null,null,"",null,null,null,null,""]
[null,null,null,null,null,"",null,null,null,null,""]
[null,null,null,null,null,"",null,null,null,null,""]
[null,null,null,null,null,"",null,null,null,null,""]
[null,null,null,null,null,"",null,null,null,null,""]
[null,null,null,null,null,"",null,null,null,null,""]
[null,null,null,null,null,"",null,null,null,null,""]
[null,null,null,null,null,"",null,null,null,null,""]
[null,null,null,null,null,"",null,null,null,null,""]
[null,null,null,null,null,"",null,null,null,null,""]
[null,null,null,null,null,"",null,null,null,null,""]
[null,null,null,null,null,"",null,null,null,null,""]
[null,null,null,null,null,"",null,null,null,null,""]
[null,null,null,null,null,"",null,null,null,null,""]
[null,null,null,null,null,"",null,null,null,null,""]
[null,null,null,null,null,"",null,null,null,null,""]
[null,null,null,null,null,"",null,null,null,null,""]
[null,null,null,null,null,"",null,null,null,null,""]
[null,null,null,null,null,"",null,null,null,null,""]
[null,null,null,null,null,"",null,null,null,null,""]
[null,null,null,null,null,"",null,null,null,null,""]
[null,null,null,null,null,"",null,null,null,null,""]
[null,null,null,null,null,"",null,null,null,null,""]
[null,null,null,null,null,"",null,null,null,null,""]
[null,null,null,null,null,"",null,null,null,null,""]
[null,null,null,null,null,"",null,null,null,null,""]
[null,null,null,null,null,"",null,null,null,null,""]
[null,null,null,null,null,"",null,null,null,null,""]
[null,null,null,null,null,"",null,null,null,null,""]
[null,null,null,null,null,"",null,null,null,null,""]
[null,null,null,null,null,{"$f":"IF(C259=\"\",\"\",ROUND(C259*D259+E259,3))","v":""},null,null,null,null,{"$f":"IF(C259=\"\",\"\",ROUND(SUM(C259,F259,H259,I259,J259),3))","v":""}]
[null,null,null,null,null,"",null,null,null,null,""]
[null,null,null,null,null,"",null,null,null,null,""]
[null,null,null,null,null,"",null,null,null,null,""]
[null,null,null,null,null,"",null,null,null,null,""]
[null,null,null,null,null,"",null,null,null,null,""]
[null,null,null,null,null,"",null,null,null,null,""]
[null,null,null,null,null,"",null,null,null,null,""]
[null,null,null,null,null,"",null,null,null,null,""]
[null,null,null,null,null,"",null,null,null,null,""]
[null,null,null,null,null,"",null,null,null,null,""]
[null,null,null,null,null,"",null,null,null,null,""]
[null,null,null,null,null,"",null,null,null,null,""]
[null,null,null,null,null,"",null,null,null,null,""]
[null,null,null,null,null,"",null,null,null,null,""]
[null,null,null,null,null,"",null,null,null,null,""]
[null,null,null,null,null,"",null,null,null,null,""]
[null,null,null,null,null,"",null,null,null,null,""]
[null,null,null,null,null,"",null,null,null,null,""]
[null,null,null,null,null,"",null,null,null,null,""]
[null,null,null,null,null,"",null,null,null,null,""]
[null,null,null,null,null,"",null,null,null,null,""]
[null,null,null,null,null,"",null,null,null,null,""]
[null,null,null,null,null,"",null,null,null,null,""]
[null,null,null,null,null,"",null,null,null,null,""]
[null,null,null,null,null,"",null,null,null,null,""]
[null,null,null,null,null,"",null,null,null,null,""]
[null,null,null,null,null,"",null,null,null,null,""]
[null,null,null,null,null,"",null,null,null,null,""]
[null,null,null,null,null,"",null,null,null,null,""]
[null,null,null,null,null,"",null,null,null,null,""]
[null,null,null,null,null,"",null,null,null,null,""]
[null,null,null,null,null,"",null,null,null,null,""]
[null,null,null,null,null,"",null,null,null,null,""]
[null,null,null,null,null,"",null,null,null,null,""]
[null,null,null,null,null,"",null,null,null,null,""]
[null,null,null,null,null,"",null,null,null,null,""]
[null,null,null,null,null,"",null,null,null,null,""]
[null,null,null,null,null,"",null,null,null,null,""]
[null,null,null,null,null,"",null,null,null,null,""]
[null,null,null,null,null,"",null,null,null,null,""]
[null,null,null,null,null,"",null,null,null,null,""]
[null,null,null,null,null,"",null,null,null,null,""]
[null,null,null,null,null,"",null,null,null,null,""]
[null,null,null,null,null,"",null,null,null,null,""]
[null,null,null,null,null,"",null,null,null,null,""]
[null,null,null,null,null,"",null,null,null,null,""]
[null,null,null,null,null,"",null,null,null,null,""]
[null,null,null,null,null,"",null,null,null,null,""]
[null,null,null,null,null,"",null,null,null,null,""]
[null,null,null,null,null,"",null,null,null,null,""]
[null,null,null,null,null,"",null,null,null,null,""]
[null,null,null,null,null,"",null,null,null,null,""]
[null,null,null,null,null,"",null,null,null,null,""]
[null,null,null,null,null,"",null,null,null,null,""]
[null,null,null,null,null,"",null,null,null,null,""]
[null,null,null,null,null,"",null,null,null,null,""]
[null,null,null,null,null,"",null,null,null,null,""]
[null,null,null,null,null,"",null,null,null,null,""]
[null,null,null,null,null,"",null,null,null,null,""]
[null,null,null,null,null,"",null,null,null,null,""]
[null,null,null,null,null,"",null,null,null,null,""]
[null,null,null,null,null,"",null,null,null,null,""]
[null,null,null,null,null,"",null,null,null,null,""]
[null,null,null,null,null,{"$f":"IF(C323=\"\",\"\",ROUND(C323*D323+E323,3))","v":""},null,null,null,null,{"$f":"IF(C323=\"\",\"\",ROUND(SUM(C323,F323,H323,I323,J323),3))","v":""}]
[null,null,null,null,null,"",null,null,null,null,""]
[null,null,null,null,null,"",null,null,null,null,""]
[null,null,null,null,null,"",null,null,null,null,""]
[null,null,null,null,null,"",null,null,null,null,""]
[null,null,null,null,null,"",null,null,null,null,""]
[null,null,null,null,null,"",null,null,null,null,""]
[null,null,null,null,null,"",null,null,null,null,""]
[null,null,null,null,null,"",null,null,null,null,""]
[null,null,null,null,null,"",null,null,null,null,""]
[null,null,null,null,null,"",null,null,null,null,""]
[null,null,null,null,null,"",null,null,null,null,""]
[null,null,null,null,null,"",null,null,null,null,""]
[null,null,null,null,null,"",null,null,null,null,""]
[null,null,null,null,null,"",null,null,null,null,""]
[null,null,null,null,null,"",null,null,null,null,""]
[null,null,null,null,null,"",null,null,null,null,""]
[null,null,null,null,null,"",null,null,null,null,""]
[null,null,null,null,null,"",null,null,null,null,""]
[null,null,null,null,null,"",null,null,null,null,""]
[null,null,null,null,null,"",null,null,null,null,""]
[null,null,null,null,null,"",null,null,null,null,""]
[null,null,null,null,null,"",null,null,null,null,""]
[null,null,null,null,null,"",null,null,null,null,""]
[null,null,null,null,null,"",null,null,null,null,""]
[null,null,null,null,null,"",null,null,null,null,""]
[null,null,null,null,null,"",null,null,null,null,""]
[null,null,null,null,null,"",null,null,null,null,""]
[null,null,null,null,null,"",null,null,null,null,""]
[null,null,null,null,null,"",null,null,null,null,""]
[null,null,null,null,null,"",null,null,null,null,""]
[null,null,null,null,null,"",null,null,null,null,""]
[null,null,null,null,null,"",null,null,null,null,""]
[null,null,null,null,null,"",null,null,null,null,""]
[null,null,null,null,null,"",null,null,null,null,""]
[null,null,null,null,null,"",null,null,null,null,""]
[null,null,null,null,null,"",null,null,null,null,""]
[null,null,null,null,null,"",null,null,null,null,""]
[null,null,null,null,null,"",null,null,null,null,""]
[null,null,null,null,null,"",null,null,null,null,""]
[null,null,null,null,null,"",null,null,null,null,""]
[null,null,null,null,null,"",null,null,null,null,""]
[null,null,null,null,null,"",null,null,null,null,""]
[null,null,null,null,null,"",null,null,null,null,""]
[null,null,null,null,null,"",null,null,null,null,""]
[null,null,null,null,null,"",null,null,null,null,""]
[null,null,null,null,null,"",null,null,null,null,""]
[null,null,null,null,null,"",null,null,null,null,""]
[null,null,null,null,null,"",null,null,null,null,""]
[null,null,null,null,null,"",null,null,null,null,""]
[null,null,null,null,null,"",null,null,null,null,""]
[null,null,null,null,null,"",null,null,null,null,""]
[null,null,null,null,null,"",null,null,null,null,""]
[null,null,null,null,null,"",null,null,null,null,""]
[null,null,null,null,null,"",null,null,null,null,""]
[null,null,null,null,null,"",null,null,null,null,""]
[null,null,null,null,null,"",null,null,null,null,""]
[null,null,null,null,null,"",null,null,null,null,""]
[null,null,null,null,null,"",null,null,null,null,""]
[null,null,null,null,null,"",null,null,null,null,""]
[null,null,null,null,null,"",null,null,null,null,""]
[null,null,null,null,null,"",null,null,null,null,""]
[null,null,null,null,null,"",null,null,null,null,""]
[null,null,null,null,null,"",null,null,null,null,""]
[null,null,null,null,null,{"$f":"IF(C387=\"\",\"\",ROUND(C387*D387+E387,3))","v":""},null,null,null,null,{"$f":"IF(C387=\"\",\"\",ROUND(SUM(C387,F387,H387,I387,J387),3))","v":""}]
[null,null,null,null,null,"",null,null,null,null,""]
[null,null,null,null,null,"",null,null,null,null,""]
[null,null,null,null,null,"",null,null,null,null,""]
[null,null,null,null,null,"",null,null,null,null,""]
[null,null,null,null,null,"",null,null,null,null,""]
[null,null,null,null,null,"",null,null,null,null,""]
[null,null,null,null,null,"",null,null,null,null,""]
[null,null,null,null,null,"",null,null,null,null,""]
[null,null,null,null,null,"",null,null,null,null,""]
[null,null,null,null,null,"",null,null,null,null,""]
[null,null,null,null,null,"",null,null,null,null,""]
[null,null,null,null,null,"",null,null,null,null,""]
[null,null,null,null,null,"",null,null,null,null,""]
[null,null,null,null,null,"",null,null,null,null,""]
[null,null,null,null,null,"",null,null,null,null,""]
[null,null,null,null,null,"",null,null,null,null,""]
[null,null,null,null,null,"",null,null,null,null,""]
[null,null,null,null,null,"",null,null,null,null,""]
[null,null,null,null,null,"",null,null,null,null,""]
[null,null,null,null,null,"",null,null,null,null,""]
[null,null,null,null,null,"",null,null,null,null,""]
[null,null,null,null,null,"",null,null,null,null,""]
[null,null,null,null,null,"",null,null,null,null,""]
[null,null,null,null,null,"",null,null,null,null,""]
[null,null,null,null,null,"",null,null,null,null,""]
[null,null,null,null,null,"",null,null,null,null,""]
[null,null,null,null,null,"",null,null,null,null,""]
[null,null,null,null,null,"",null,null,null,null,""]
[null,null,null,null,null,"",null,null,null,null,""]
[null,null,null,null,null,"",null,null,null,null,""]
[null,null,null,null,null,"",null,null,null,null,""]
[null,null,null,null,null,"",null,null,null,null,""]
[null,null,null,null,null,"",null,null,null,null,""]
[null,null,null,null,null,"",null,null,null,null,""]
[null,null,null,null,null,"",null,null,null,null,""]
[null,null,null,null,null,"",null,null,null,null,""]
[null,null,null,null,null,"",null,null,null,null,""]
[null,null,null,null,null,"",null,null,null,null,""]
[null,null,null,null,null,"",null,null,null,null,""]
[null,null,null,null,null,"",null,null,null,null,""]
[null,null,null,null,null,"",null,null,null,null,""]
[null,null,null,null,null,"",null,null,null,null,""]
[null,null,null,null,null,"",null,null,null,null,""]
[null,null,null,null,null,"",null,null,null,null,""]
[null,null,null,null,null,"",null,null,null,null,""]
[null,null,null,null,null,"",null,null,null,null,""]
[null,null,null,null,null,"",null,null,null,null,""]
[null,null,null,null,null,"",null,null,null,null,""]
[null,null,null,null,null,"",null,null,null,null,""]
[null,null,null,null,null,"",null,null,null,null,""]
[null,null,null,null,null,"",null,null,null,null,""]
[null,null,null,null,null,"",null,null,null,null,""]
[null,null,null,null,null,"",null,null,null,null,""]
[null,null,null,null,null,"",null,null,null,null,""]
[null,null,null,null,null,"",null,null,null,null,""]
[null,null,null,null,null,"",null,null,null,null,""]
[null,null,null,null,null,"",null,null,null,null,""]
[null,null,null,null,null,"",null,null,null,null,""]
[null,null,null,null,null,"",null,null,null,null,""]
[null,null,null,null,null,"",null,null,null,null,""]
[null,null,null,null,null,"",null,null,null,null,""]
[null,null,null,null,null,"",null,null,null,null,""]
[null,null,null,null,null,"",null,null,null,null,""]
[null,null,null,null,null,{"$f":"IF(C451=\"\",\"\",ROUND(C451*D451+E451,3))","v":""},null,null,null,null,{"$f":"IF(C451=\"\",\"\",ROUND(SUM(C451,F451,H451,I451,J451),3))","v":""}]
[null,null,null,null,null,"",null,null,null,null,""]
[null,null,null,null,null,"",null,null,null,null,""]
[null,null,null,null,null,"",null,null,null,null,""]
[null,null,null,null,null,"",null,null,null,null,""]
[null,null,null,null,null,"",null,null,null,null,""]
[null,null,null,null,null,"",null,null,null,null,""]
[null,null,null,null,null,"",null,null,null,null,""]
[null,null,null,null,null,"",null,null,null,null,""]
[null,null,null,null,null,"",null,null,null,null,""]
[null,null,null,null,null,"",null,null,null,null,""]
[null,null,null,null,null,"",null,null,null,null,""]
[null,null,null,null,null,"",null,null,null,null,""]
[null,null,null,null,null,"",null,null,null,null,""]
[null,null,null,null,null,"",null,null,null,null,""]
[null,null,null,null,null,"",null,null,null,null,""]
[null,null,null,null,null,"",null,null,null,null,""]
[null,null,null,null,null,"",null,null,null,null,""]
[null,null,null,null,null,"",null,null,null,null,""]
[null,null,null,null,null,"",null,null,null,null,""]
[null,null,null,null,null,"",null,null,null,null,""]
[null,null,null,null,null,"",null,null,null,null,""]
[null,null,null,null,null,"",null,null,null,null,""]
[null,null,null,null,null,"",null,null,null,null,""]
[null,null,null,null,null,"",null,null,null,null,""]
[null,null,null,null,null,"",null,null,null,null,""]
[null,null,null,null,null,"",null,null,null,null,""]
[null,null,null,null,null,"",null,null,null,null,""]
[null,null,null,null,null,"",null,null,null,null,""]
[null,null,null,null,null,"",null,null,null,null,""]
[null,null,null,null,null,"",null,null,null,null,""]
[null,null,null,null,null,"",null,null,null,null,""]
[null,null,null,null,null,"",null,null,null,null,""]
[null,null,null,null,null,"",null,null,null,null,""]
[null,null,null,null,null,"",null,null,null,null,""]
[null,null,null,null,null,"",null,null,null,null,""]
[null,null,null,null,null,"",null,null,null,null,""]
[null,null,null,null,null,"",null,null,null,null,""]
[null,null,null,null,null,"",null,null,null,null,""]
[null,null,null,null,null,"",null,null,null,null,""]
[null,null,null,null,null,"",null,null,null,null,""]
[null,null,null,null,null,"",null,null,null,null,""]
[null,null,null,null,null,"",null,null,null,null,""]
[null,null,null,null,null,"",null,null,null,null,""]
[null,null,null,null,null,"",null,null,null,null,""]
[null,null,null,null,null,"",null,null,null,null,""]
[null,null,null,null,null,"",null,null,null,null,""]
[null,null,null,null,null,"",null,null,null,null,""]
[null,null,null,null,null,"",null,null,null,null,""]
[null,null,null,null,null,"",null,null,null,null,""]
[null,null,null,null,null,"",null,null,null,null,""]
[null,null,null,null,null,"",null,null,null,null,""]
[null,null,null,null,null,"",null,null,null,null,""]
[null,null,null,null,null,"",null,null,null,null,""]
[null,null,null,null,null,"",null,null,null,null,""]
[null,null,null,null,null,"",null,null,null,null,""]
[null,null,null,null,null,"",null,null,null,null,""]
[null,null,null,null,null,"",null,null,null,null,""]
[null,null,null,null,null,"",null,null,null,null,""]
[null,null,null,null,null,"",null,null,null,null,""]
[null,null,null,null,null,"",null,null,null,null,""]
[null,null,null,null,null,"",null,null,null,null,""]
[null,null,null,null,null,"",null,null,null,null,""]
[null,null,null,null,null,"",null,null,null,null,""]
[null,null,null,null,null,{"$f":"IF(C515=\"\",\"\",ROUND(C515*D515+E515,3))","v":""},null,null,null,null,{"$f":"IF(C515=\"\",\"\",ROUND(SUM(C515,F515,H515,I515,J515),3))","v":""}]
[null,null,null,null,null,"",null,null,null,null,""]
[null,null,null,null,null,"",null,null,null,null,""]
[null,null,null,null,null,"",null,null,null,null,""]
[null,null,null,null,null,"",null,null,null,null,""]
[null,null,null,null,null,"",null,null,null,null,""]
[null,null,null,null,null,"",null,null,null,null,""]
[null,null,null,null,null,"",null,null,null,null,""]
[null,null,null,null,null,"",null,null,null,null,""]
[null,null,null,null,null,"",null,null,null,null,""]
[null,null,null,null,null,"",null,null,null,null,""]
[null,null,null,null,null,"",null,null,null,null,""]
[null,null,null,null,null,"",null,null,null,null,""]
[null,null,null,null,null,"",null,null,null,null,""]
[null,null,null,null,null,"",null,null,null,null,""]
[null,null,null,null,null,"",null,null,null,null,""]
[null,null,null,null,null,"",null,null,null,null,""]
[null,null,null,null,null,"",null,null,null,null,""]
[null,null,null,null,null,"",null,null,null,null,""]
[null,null,null,null,null,"",null,null,null,null,""]
[null,null,null,null,null,"",null,null,null,null,""]
[null,null,null,null,null,"",null,null,null,null,""]
[null,null,null,null,null,"",null,null,null,null,""]
[null,null,null,null,null,"",null,null,null,null,""]
[null,null,null,null,null,"",null,null,null,null,""]
[null,null,null,null,null,"",null,null,null,null,""]
[null,null,null,null,null,"",null,null,null,null,""]
[null,null,null,null,null,"",null,null,null,null,""]
[null,null,null,null,null,"",null,null,null,null,""]
[null,null,null,null,null,"",null,null,null,null,""]
[null,null,null,null,null,"",null,null,null,null,""]
[null,null,null,null,null,"",null,null,null,null,""]
[null,null,null,null,null,"",null,null,null,null,""]
[null,null,null,null,null,"",null,null,null,null,""]
[null,null,null,null,null,"",null,null,null,null,""]
[null,null,null,null,null,"",null,null,null,null,""]
[null,null,null,null,null,"",null,null,null,null,""]
[null,null,null,null,null,"",null,null,null,null,""]
[null,null,null,null,null,"",null,null,null,null,""]
[null,null,null,null,null,"",null,null,null,null,""]
[null,null,null,null,null,"",null,null,null,null,""]
[null,null,null,null,null,"",null,null,null,null,""]
[null,null,null,null,null,"",null,null,null,null,""]
[null,null,null,null,null,"",null,null,null,null,""]
[null,null,null,null,null,"",null,null,null,null,""]
[null,null,null,null,null,"",null,null,null,null,""]
[null,null,null,null,null,"",null,null,null,null,""]
[null,null,null,null,null,"",null,null,null,null,""]
[null,null,null,null,null,"",null,null,null,null,""]
[null,null,null,null,null,"",null,null,null,null,""]
[null,null,null,null,null,"",null,null,null,null,""]
[null,null,null,null,null,"",null,null,null,null,""]
[null,null,null,null,null,"",null,null,null,null,""]
[null,null,null,null,null,"",null,null,null,null,""]
[null,null,null,null,null,"",null,null,null,null,""]
[null,null,null,null,null,"",null,null,null,null,""]
[null,null,null,null,null,"",null,null,null,null,""]
[null,null,null,null,null,"",null,null,null,null,""]
[null,null,null,null,null,"",null,null,null,null,""]
[null,null,null,null,null,"",null,null,null,null,""]
[null,null,null,null,null,"",null,null,null,null,""]
[null,null,null,null,null,"",null,null,null,null,""]
[null,null,null,null,null,"",null,null,null,null,""]
[null,null,null,null,null,"",null,null,null,null,""]
[null,null,null,null,null,{"$f":"IF(C579=\"\",\"\",ROUND(C579*D579+E579,3))","v":""},null,null,null,null,{"$f":"IF(C579=\"\",\"\",ROUND(SUM(C579,F579,H579,I579,J579),3))","v":""}]
[null,null,null,null,null,"",null,null,null,null,""]
[null,null,null,null,null,"",null,null,null,null,""]
[null,null,null,null,null,"",null,null,null,null,""]
[null,null,null,null,null,"",null,null,null,null,""]
[null,null,null,null,null,"",null,null,null,null,""]
[null,null,null,null,null,"",null,null,null,null,""]
[null,null,null,null,null,"",null,null,null,null,""]
[null,null,null,null,null,"",null,null,null,null,""]
[null,null,null,null,null,"",null,null,null,null,""]
[null,null,null,null,null,"",null,null,null,null,""]
[null,null,null,null,null,"",null,null,null,null,""]
[null,null,null,null,null,"",null,null,null,null,""]
[null,null,null,null,null,"",null,null,null,null,""]
[null,null,null,null,null,"",null,null,null,null,""]
[null,null,null,null,null,"",null,null,null,null,""]
[null,null,null,null,null,"",null,null,null,null,""]
[null,null,null,null,null,"",null,null,null,null,""]
[null,null,null,null,null,"",null,null,null,null,""]
[null,null,null,null,null,"",null,null,null,null,""]
[null,null,null,null,null,"",null,null,null,null,""]
[null,null,null,null,null,"",null,null,null,null,""]
[null,null,null,null,null,"",null,null,null,null,""]
[null,null,null,null,null,"",null,null,null,null,""]
[null,null,null,null,null,"",null,null,null,null,""]
[null,null,null,null,null,"",null,null,null,null,""]
[null,null,null,null,null,"",null,null,null,null,""]
[null,null,null,null,null,"",null,null,null,null,""]
[null,null,null,null,null,"",null,null,null,null,""]
[null,null,null,null,null,"",null,null,null,null,""]
[null,null,null,null,null,"",null,null,null,null,""]
[null,null,null,null,null,"",null,null,null,null,""]
[null,null,null,null,null,"",null,null,null,null,""]
[null,null,null,null,null,"",null,null,null,null,""]
[null,null,null,null,null,"",null,null,null,null,""]
[null,null,null,null,null,"",null,null,null,null,""]
[null,null,null,null,null,"",null,null,null,null,""]
[null,null,null,null,null,"",null,null,null,null,""]
[null,null,null,null,null,"",null,null,null,null,""]
[null,null,null,null,null,"",null,null,null,null,""]
[null,null,null,null,null,"",null,null,null,null,""]
[null,null,null,null,null,"",null,null,null,null,""]
[null,null,null,null,null,"",null,null,null,null,""]
[null,null,null,null,null,"",null,null,null,null,""]
[null,null,null,null,null,"",null,null,null,null,""]
[null,null,null,null,null,"",null,null,null,null,""]
[null,null,null,null,null,"",null,null,null,null,""]
[null,null,null,null,null,"",null,null,null,null,""]
[null,null,null,null,null,"",null,null,null,null,""]
[null,null,null,null,null,"",null,null,null,null,""]
[null,null,null,null,null,"",null,null,null,null,""]
[null,null,null,null,null,"",null,null,null,null,""]
[null,null,null,null,null,"",null,null,null,null,""]
[null,null,null,null,null,"",null,null,null,null,""]
[null,null,null,null,null,"",null,null,null,null,""]
[null,null,null,null,null,"",null,null,null,null,""]
[null,null,null,null,null,"",null,null,null,null,""]
[null,null,null,null,null,"",null,null,null,null,""]
[null,null,null,null,null,"",null,null,null,null,""]
[null,null,null,null,null,"",null,null,null,null,""]
[null,null,null,null,null,"",null,null,null,null,""]
[null,null,null,null,null,"",null,null,null,null,""]
[null,null,null,null,null,"",null,null,null,null,""]
[null,null,null,null,null,"",null,null,null,null,""]
[null,null,null,null,null,{"$f":"IF(C643=\"\",\"\",ROUND(C643*D643+E643,3))","v":""},null,null,null,null,{"$f":"IF(C643=\"\",\"\",ROUND(SUM(C643,F643,H643,I643,J643),3))","v":""}]
[null,null,null,null,null,"",null,null,null,null,""]
[null,null,null,null,null,"",null,null,null,null,""]
[null,null,null,null,null,"",null,null,null,null,""]
[null,null,null,null,null,"",null,null,null,null,""]
[null,null,null,null,null,"",null,null,null,null,""]
[null,null,null,null,null,"",null,null,null,null,""]
[null,null,null,null,null,"",null,null,null,null,""]
[null,null,null,null,null,"",null,null,null,null,""]
[null,null,null,null,null,"",null,null,null,null,""]
[null,null,null,null,null,"",null,null,null,null,""]
[null,null,null,null,null,"",null,null,null,null,""]
[null,null,null,null,null,"",null,null,null,null,""]
[null,null,null,null,null,"",null,null,null,null,""]
[null,null,null,null,null,"",null,null,null,null,""]
[null,null,null,null,null,"",null,null,null,null,""]
[null,null,null,null,null,"",null,null,null,null,""]
[null,null,null,null,null,"",null,null,null,null,""]
[null,null,null,null,null,"",null,null,null,null,""]
[null,null,null,null,null,"",null,null,null,null,""]
[null,null,null,null,null,"",null,null,null,null,""]
[null,null,null,null,null,"",null,null,null,null,""]
[null,null,null,null,null,"",null,null,null,null,""]
[null,null,null,null,null,"",null,null,null,null,""]
[null,null,null,null,null,"",null,null,null,null,""]
[null,null,null,null,null,"",null,null,null,null,""]
[null,null,null,null,null,"",null,null,null,null,""]
[null,null,null,null,null,"",null,null,null,null,""]
[null,null,null,null,null,"",null,null,null,null,""]
[null,null,null,null,null,"",null,null,null,null,""]
[null,null,null,null,null,"",null,null,null,null,""]
[null,null,null,null,null,"",null,null,null,null,""]
[null,null,null,null,null,"",null,null,null,null,""]
[null,null,null,null,null,"",null,null,null,null,""]
[null,null,null,null,null,"",null,null,null,null,""]
[null,null,null,null,null,"",null,null,null,null,""]
[null,null,null,null,null,"",null,null,null,null,""]
[null,null,null,null,null,"",null,null,null,null,""]
[null,null,null,null,null,"",null,null,null,null,""]
[null,null,null,null,null,"",null,null,null,null,""]
[null,null,null,null,null,"",null,null,null,null,""]
[null,null,null,null,null,"",null,null,null,null,""]
[null,null,null,null,null,"",null,null,null,null,""]
[null,null,null,null,null,"",null,null,null,null,""]
[null,null,null,null,null,"",null,null,null,null,""]
[null,null,null,null,null,"",null,null,null,null,""]
[null,null,null,null,null,"",null,null,null,null,""]
[null,null,null,null,null,"",null,null,null,null,""]
[null,null,null,null,null,"",null,null,null,null,""]
[null,null,null,null,null,"",null,null,null,null,""]
[null,null,null,null,null,"",null,null,null,null,""]
[null,null,null,null,null,"",null,null,null,null,""]
[null,null,null,null,null,"",null,null,null,null,""]
[null,null,null,null,null,"",null,null,null,null,""]
[null,null,null,null,null,"",null,null,null,null,""]
[null,null,null,null,null,"",null,null,null,null,""]
[null,null,null,null,null,"",null,null,null,null,""]
[null,null,null,null,null,"",null,null,null,null,""]
[null,null,null,null,null,"",null,null,null,null,""]
[null,null,null,null,null,"",null,null,null,null,""]
[null,null,null,null,null,"",null,null,null,null,""]
[null,null,null,null,null,"",null,null,null,null,""]
[null,null,null,null,null,"",null,null,null,null,""]
[null,null,null,null,null,"",null,null,null,null,""]
[null,null,null,null,null,{"$f":"IF(C707=\"\",\"\",ROUND(C707*D707+E707,3))","v":""},null,null,null,null,{"$f":"IF(C707=\"\",\"\",ROUND(SUM(C707,F707,H707,I707,J707),3))","v":""}]
[null,null,null,null,null,"",null,null,null,null,""]
[null,null,null,null,null,"",null,null,null,null,""]
[null,null,null,null,null,"",null,null,null,null,""]
[null,null,null,null,null,"",null,null,null,null,""]
[null,null,null,null,null,"",null,null,null,null,""]
[null,null,null,null,null,"",null,null,null,null,""]
[null,null,null,null,null,"",null,null,null,null,""]
[null,null,null,null,null,"",null,null,null,null,""]
[null,null,null,null,null,"",null,null,null,null,""]
[null,null,null,null,null,"",null,null,null,null,""]
[null,null,null,null,null,"",null,null,null,null,""]
[null,null,null,null,null,"",null,null,null,null,""]
[null,null,null,null,null,"",null,null,null,null,""]
[null,null,null,null,null,"",null,null,null,null,""]
[null,null,null,null,null,"",null,null,null,null,""]
[null,null,null,null,null,"",null,null,null,null,""]
[null,null,null,null,null,"",null,null,null,null,""]
[null,null,null,null,null,"",null,null,null,null,""]
[null,null,null,null,null,"",null,null,null,null,""]
[null,null,null,null,null,"",null,null,null,null,""]
[null,null,null,null,null,"",null,null,null,null,""]
[null,null,null,null,null,"",null,null,null,null,""]
[null,null,null,null,null,"",null,null,null,null,""]
[null,null,null,null,null,"",null,null,null,null,""]
[null,null,null,null,null,"",null,null,null,null,""]
[null,null,null,null,null,"",null,null,null,null,""]
[null,null,null,null,null,"",null,null,null,null,""]
[null,null,null,null,null,"",null,null,null,null,""]
[null,null,null,null,null,"",null,null,null,null,""]
[null,null,null,null,null,"",null,null,null,null,""]
[null,null,null,null,null,"",null,null,null,null,""]
[null,null,null,null,null,"",null,null,null,null,""]
[null,null,null,null,null,"",null,null,null,null,""]
[null,null,null,null,null,"",null,null,null,null,""]
[null,null,null,null,null,"",null,null,null,null,""]
[null,null,null,null,null,"",null,null,null,null,""]
[null,null,null,null,null,"",null,null,null,null,""]
[null,null,null,null,null,"",null,null,null,null,""]
[null,null,null,null,null,"",null,null,null,null,""]
[null,null,null,null,null,"",null,null,null,null,""]
[null,null,null,null,null,"",null,null,null,null,""]
[null,null,null,null,null,"",null,null,null,null,""]
[null,null,null,null,null,"",null,null,null,null,""]
[null,null,null,null,null,"",null,null,null,null,""]
[null,null,null,null,null,"",null,null,null,null,""]
[null,null,null,null,null,"",null,null,null,null,""]
[null,null,null,null,null,"",null,null,null,null,""]
[null,null,null,null,null,"",null,null,null,null,""]
[null,null,null,null,null,"",null,null,null,null,""]
[null,null,null,null,null,"",null,null,null,null,""]
[null,null,null,null,null,"",null,null,null,null,""]
[null,null,null,null,null,"",null,null,null,null,""]
[null,null,null,null,null,"",null,null,null,null,""]
[null,null,null,null,null,"",null,null,null,null,""]
[null,null,null,null,null,"",null,null,null,null,""]
[null,null,null,null,null,"",null,null,null,null,""]
[null,null,null,null,null,"",null,null,null,null,""]
[null,null,null,null,null,"",null,null,null,null,""]
[null,null,null,null,null,"",null,null,null,null,""]
[null,null,null,null,null,"",null,null,null,null,""]
[null,null,null,null,null,"",null,null,null,null,""]
[null,null,null,null,null,"",null,null,null,null,""]
[null,null,null,null,null,"",null,null,null,null,""]
[null,null,null,null,null,{"$f":"IF(C771=\"\",\"\",ROUND(C771*D771+E771,3))","v":""},null,null,null,null,{"$f":"IF(C771=\"\",\"\",ROUND(SUM(C771,F771,H771,I771,J771),3))","v":""}]
[null,null,null,null,null,"",null,null,null,null,""]
[null,null,null,null,null,"",null,null,null,null,""]
[null,null,null,null,null,"",null,null,null,null,""]
[null,null,null,null,null,"",null,null,null,null,""]
[null,null,null,null,null,"",null,null,null,null,""]
[null,null,null,null,null,"",null,null,null,null,""]
[null,null,null,null,null,"",null,null,null,null,""]
[null,null,null,null,null,"",null,null,null,null,""]
[null,null,null,null,null,"",null,null,null,null,""]
[null,null,null,null,null,"",null,null,null,null,""]
[null,null,null,null,null,"",null,null,null,null,""]
[null,null,null,null,null,"",null,null,null,null,""]
[null,null,null,null,null,"",null,null,null,null,""]
[null,null,null,null,null,"",null,null,null,null,""]
[null,null,null,null,null,"",null,null,null,null,""]
[null,null,null,null,null,"",null,null,null,null,""]
[null,null,null,null,null,"",null,null,null,null,""]
[null,null,null,null,null,"",null,null,null,null,""]
[null,null,null,null,null,"",null,null,null,null,""]
[null,null,null,null,null,"",null,null,null,null,""]
[null,null,null,null,null,"",null,null,null,null,""]
[null,null,null,null,null,"",null,null,null,null,""]
[null,null,null,null,null,"",null,null,null,null,""]
[null,null,null,null,null,"",null,null,null,null,""]
[null,null,null,null,null,"",null,null,null,null,""]
[null,null,null,null,null,"",null,null,null,null,""]
[null,null,null,null,null,"",null,null,null,null,""]
[null,null,null,null,null,"",null,null,null,null,""]
[null,null,null,null,null,"",null,null,null,null,""]
[null,null,null,null,null,"",null,null,null,null,""]
[null,null,null,null,null,"",null,null,null,null,""]
[null,null,null,null,null,"",null,null,null,null,""]
[null,null,null,null,null,"",null,null,null,null,""]
[null,null,null,null,null,"",null,null,null,null,""]
[null,null,null,null,null,"",null,null,null,null,""]
[null,null,null,null,null,"",null,null,null,null,""]
[null,null,null,null,null,"",null,null,null,null,""]
[null,null,null,null,null,"",null,null,null,null,""]
[null,null,null,null,null,"",null,null,null,null,""]
[null,null,null,null,null,"",null,null,null,null,""]
[null,null,null,null,null,"",null,null,null,null,""]
[null,null,null,null,null,"",null,null,null,null,""]
[null,null,null,null,null,"",null,null,null,null,""]
[null,null,null,null,null,"",null,null,null,null,""]
[null,null,null,null,null,"",null,null,null,null,""]
[null,null,null,null,null,"",null,null,null,null,""]
[null,null,null,null,null,"",null,null,null,null,""]
[null,null,null,null,null,"",null,null,null,null,""]
[null,null,null,null,null,"",null,null,null,null,""]
[null,null,null,null,null,"",null,null,null,null,""]
[null,null,null,null,null,"",null,null,null,null,""]
[null,null,null,null,null,"",null,null,null,null,""]
[null,null,null,null,null,"",null,null,null,null,""]
[null,null,null,null,null,"",null,null,null,null,""]
[null,null,null,null,null,"",null,null,null,null,""]
[null,null,null,null,null,"",null,null,null,null,""]
[null,null,null,null,null,"",null,null,null,null,""]
[null,null,null,null,null,"",null,null,null,null,""]
[null,null,null,null,null,"",null,null,null,null,""]
[null,null,null,null,null,"",null,null,null,null,""]
[null,null,null,null,null,"",null,null,null,null,""]
[null,null,null,null,null,"",null,null,null,null,""]
[null,null,null,null,null,"",null,null,null,null,""]
[null,null,null,null,null,{"$f":"IF(C835=\"\",\"\",ROUND(C835*D835+E835,3))","v":""},null,null,null,null,{"$f":"IF(C835=\"\",\"\",ROUND(SUM(C835,F835,H835,I835,J835),3))","v":""}]
[null,null,null,null,null,"",null,null,null,null,""]
[null,null,null,null,null,"",null,null,null,null,""]
[null,null,null,null,null,"",null,null,null,null,""]
[null,null,null,null,null,"",null,null,null,null,""]
[null,null,null,null,null,"",null,null,null,null,""]
[null,null,null,null,null,"",null,null,null,null,""]
[null,null,null,null,null,"",null,null,null,null,""]
[null,null,null,null,null,"",null,null,null,null,""]
[null,null,null,null,null,"",null,null,null,null,""]
[null,null,null,null,null,"",null,null,null,null,""]
[null,null,null,null,null,"",null,null,null,null,""]
[null,null,null,null,null,"",null,null,null,null,""]
[null,null,null,null,null,"",null,null,null,null,""]
[null,null,null,null,null,"",null,null,null,null,""]
[null,null,null,null,null,"",null,null,null,null,""]
[null,null,null,null,null,"",null,null,null,null,""]
[null,null,null,null,null,"",null,null,null,null,""]
[null,null,null,null,null,"",null,null,null,null,""]
[null,null,null,null,null,"",null,null,null,null,""]
[null,null,null,null,null,"",null,null,null,null,""]
[null,null,null,null,null,"",null,null,null,null,""]
[null,null,null,null,null,"",null,null,null,null,""]
[null,null,null,null,null,"",null,null,null,null,""]
[null,null,null,null,null,"",null,null,null,null,""]
[null,null,null,null,null,"",null,null,null,null,""]
[null,null,null,null,null,"",null,null,null,null,""]
[null,null,null,null,null,"",null,null,null,null,""]
[null,null,null,null,null,"",null,null,null,null,""]
[null,null,null,null,null,"",null,null,null,null,""]
[null,null,null,null,null,"",null,null,null,null,""]
[null,null,null,null,null,"",null,null,null,null,""]
[null,null,null,null,null,"",null,null,null,null,""]
[null,null,null,null,null,"",null,null,null,null,""]
[null,null,null,null,null,"",null,null,null,null,""]
[null,null,null,null,null,"",null,null,null,null,""]
[null,null,null,null,null,"",null,null,null,null,""]
[null,null,null,null,null,"",null,null,null,null,""]
[null,null,null,null,null,"",null,null,null,null,""]
[null,null,null,null,null,"",null,null,null,null,""]
[null,null,null,null,null,"",null,null,null,null,""]
[null,null,null,null,null,"",null,null,null,null,""]
[null,null,null,null,null,"",null,null,null,null,""]
[null,null,null,null,null,"",null,null,null,null,""]
[null,null,null,null,null,"",null,null,null,null,""]
[null,null,null,null,null,"",null,null,null,null,""]
[null,null,null,null,null,"",null,null,null,null,""]
[null,null,null,null,null,"",null,null,null,null,""]
[null,null,null,null,null,"",null,null,null,null,""]
[null,null,null,null,null,"",null,null,null,null,""]
[null,null,null,null,null,"",null,null,null,null,""]
[null,null,null,null,null,"",null,null,null,null,""]
[null,null,null,null,null,"",null,null,null,null,""]
[null,null,null,null,null,"",null,null,null,null,""]
[null,null,null,null,null,"",null,null,null,null,""]
[null,null,null,null,null,"",null,null,null,null,""]
[null,null,null,null,null,"",null,null,null,null,""]
[null,null,null,null,null,"",null,null,null,null,""]
[null,null,null,null,null,"",null,null,null,null,""]
[null,null,null,null,null,"",null,null,null,null,""]
[null,null,null,null,null,"",null,null,null,null,""]
[null,null,null,null,null,"",null,null,null,null,""]
[null,null,null,null,null,"",null,null,null,null,""]
[null,null,null,null,null,"",null,null,null,null,""]
[null,null,null,null,null,{"$f":"IF(C899=\"\",\"\",ROUND(C899*D899+E899,3))","v":""},null,null,null,null,{"$f":"IF(C899=\"\",\"\",ROUND(SUM(C899,F899,H899,I899,J899),3))","v":""}]
[null,null,null,null,null,"",null,null,null,null,""]
[null,null,null,null,null,"",null,null,null,null,""]
[null,null,null,null,null,"",null,null,null,null,""]
[null,null,null,null,null,"",null,null,null,null,""]
[null,null,null,null,null,"",null,null,null,null,""]
[null,null,null,null,null,"",null,null,null,null,""]
[null,null,null,null,null,"",null,null,null,null,""]
[null,null,null,null,null,"",null,null,null,null,""]
[null,null,null,null,null,"",null,null,null,null,""]
[null,null,null,null,null,"",null,null,null,null,""]
[null,null,null,null,null,"",null,null,null,null,""]
[null,null,null,null,null,"",null,null,null,null,""]
[null,null,null,null,null,"",null,null,null,null,""]
[null,null,null,null,null,"",null,null,null,null,""]
[null,null,null,null,null,"",null,null,null,null,""]
[null,null,null,null,null,"",null,null,null,null,""]
[null,null,null,null,null,"",null,null,null,null,""]
[null,null,null,null,null,"",null,null,null,null,""]
[null,null,null,null,null,"",null,null,null,null,""]
[null,null,null,null,null,"",null,null,null,null,""]
[null,null,null,null,null,"",null,null,null,null,""]
[null,null,null,null,null,"",null,null,null,null,""]
[null,null,null,null,null,"",null,null,null,null,""]
[null,null,null,null,null,"",null,null,null,null,""]
[null,null,null,null,null,"",null,null,null,null,""]
[null,null,null,null,null,"",null,null,null,null,""]
[null,null,null,null,null,"",null,null,null,null,""]
[null,null,null,null,null,"",null,null,null,null,""]
[null,null,null,null,null,"",null,null,null,null,""]
[null,null,null,null,null,"",null,null,null,null,""]
[null,null,null,null,null,"",null,null,null,null,""]
[null,null,null,null,null,"",null,null,null,null,""]
[null,null,null,null,null,"",null,null,null,null,""]
[null,null,null,null,null,"",null,null,null,null,""]
[null,null,null,null,null,"",null,null,null,null,""]
[null,null,null,null,null,"",null,null,null,null,""]
[null,null,null,null,null,"",null,null,null,null,""]
[null,null,null,null,null,"",null,null,null,null,""]
[null,null,null,null,null,"",null,null,null,null,""]
[null,null,null,null,null,"",null,null,null,null,""]
[null,null,null,null,null,"",null,null,null,null,""]
[null,null,null,null,null,"",null,null,null,null,""]
[null,null,null,null,null,"",null,null,null,null,""]
[null,null,null,null,null,"",null,null,null,null,""]
[null,null,null,null,null,"",null,null,null,null,""]
[null,null,null,null,null,"",null,null,null,null,""]
[null,null,null,null,null,"",null,null,null,null,""]
[null,null,null,null,null,"",null,null,null,null,""]
[null,null,null,null,null,"",null,null,null,null,""]
[null,null,null,null,null,"",null,null,null,null,""]
[null,null,null,null,null,"",null,null,null,null,""]
[null,null,null,null,null,"",null,null,null,null,""]
[null,null,null,null,null,"",null,null,null,null,""]
[null,null,null,null,null,"",null,null,null,null,""]
[null,null,null,null,null,"",null,null,null,null,""]
[null,null,null,null,null,"",null,null,null,null,""]
[null,null,null,null,null,"",null,null,null,null,""]
[null,null,null,null,null,"",null,null,null,null,""]
[null,null,null,null,null,"",null,null,null,null,""]
[null,null,null,null,null,"",null,null,null,null,""]
[null,null,null,null,null,"",null,null,null,null,""]
[null,null,null,null,null,"",null,null,null,null,""]
[null,null,null,null,null,"",null,null,null,null,""]
[null,null,null,null,null,{"$f":"IF(C963=\"\",\"\",ROUND(C963*D963+E963,3))","v":""},null,null,null,null,{"$f":"IF(C963=\"\",\"\",ROUND(SUM(C963,F963,H963,I963,J963),3))","v":""}]
[null,null,null,null,null,"",null,null,null,null,""]
[null,null,null,null,null,"",null,null,null,null,""]
[null,null,null,null,null,"",null,null,null,null,""]
[null,null,null,null,null,"",null,null,null,null,""]
[null,null,null,null,null,"",null,null,null,null,""]
[null,null,null,null,null,"",null,null,null,null,""]
[null,null,null,null,null,"",null,null,null,null,""]
[null,null,null,null,null,"",null,null,null,null,""]
[null,null,null,null,null,"",null,null,null,null,""]
[null,null,null,null,null,"",null,null,null,null,""]
[null,null,null,null,null,"",null,null,null,null,""]
[null,null,null,null,null,"",null,null,null,null,""]
[null,null,null,null,null,"",null,null,null,null,""]
[null,null,null,null,null,"",null,null,null,null,""]
[null,null,null,null,null,"",null,null,null,null,""]
[null,null,null,null,null,"",null,null,null,null,""]
[null,null,null,null,null,"",null,null,null,null,""]
[null,null,null,null,null,"",null,null,null,null,""]
[null,null,null,null,null,"",null,null,null,null,""]
[null,null,null,null,null,"",null,null,null,null,""]
[null,null,null,null,null,"",null,null,null,null,""]
[null,null,null,null,null,"",null,null,null,null,""]
[null,null,null,null,null,"",null,null,null,null,""]
[null,null,null,null,null,"",null,null,null,null,""]
[null,null,null,null,null,"",null,null,null,null,""]
[null,null,null,null,null,"",null,null,null,null,""]
[null,null,null,null,null,"",null,null,null,null,""]
[null,null,null,null,null,"",null,null,null,null,""]
[null,null,null,null,null,"",null,null,null,null,""]
[null,null,null,null,null,"",null,null,null,null,""]
[null,null,null,null,null,"",null,null,null,null,""]
[null,null,null,null,null,"",null,null,null,null,""]
[null,null,null,null,null,"",null,null,null,null,""]
[null,null,null,null,null,"",null,null,null,null,""]
[null,null,null,null,null,"",null,null,null,null,""]

{"sheet":"Instructions","index":1,"n_rows":31,"n_cols":4,"rows_kept":31,"cut":false,"hidden":false,"merged":[[0,2,0,3],[23,2,24,2]]}
["Version 10",null,"Cost of Goods/Retail Change - Import Form"]
[]
[]
[null,null,"Instructions"]
[null,null,"1 - Supplier fills out fields all the Data Entry Fields highlighted in green and sends form to a Category Manager (CM)"]
[null,null,"2 - CM populates the remaining fields"]
[null,null,"3 - CM uploads form into tool with at least 30 days advance notice"]
[]
[null,null,"IMPORTANT!!!  \nClick ENABLE CONTENT button before starting"]
[]
[]
[null,null,"Field on Form","Description of Field "]
[null,null,"Item#","Enter valid CVS item#"]
[null,null,"Item Description","Enter the product description"]
[null,null,"New Import Cost","Enter the New Import Cost.  Cost can NOT be more than three decimals"]
[null,null,"Duty %","Enter Duty %.  Must be whole number with NO spaces - Example -  25%  should be entered as  25"]
[null,null,"Additional Duty per PC","Enter Additional Duty per PC $"]
[null,null,"Total Duty","Calculated field "]
[null,null,"Freight Rate (per cubic ft)","Enter Freight Rate (per cubic ft) $"]
[null,null,"Ocean Freight","Enter Ocean Freight $"]
[null,null,"Misc Load $","Enter Misc Load $"]
[null,null,"Other Cost","Enter Other Cost $"]
[null,null,"Total Unit Cost","Calculated field "]
[null,null,"Effective Date","1 - Effective date entered must be in the future >60 days (Supplier)/ >30 days (CM)"]
[null,null,null,"2 - 'Invalid Date' will show if entered is a Sunday, Monday, or the day after a CVS Corporate holiday as these are systematically invalid options.  A date highlighted in yellow is < 30 days"]
[null,null,"Retail Recommendation","Select from drop down"]
[null,null,"Suggested Retail $","OPTIONAL -- Enter new Retail Price"]
[null,null,"Comments","OPTIONAL -- Add additional comments"]
[]
[]
[null,null,"Data Entry Field"]